bitfinex-derivatives/quotes_ETHF0:USTF0_20251116
["timestamp","ask_amount","ask_price","bid_price","bid_amount"]
[1763329589753,0.00265156,3067.9,3067.5,3.2078]
[1763329589754,3.2078,3068.7,3067.5,3.2078]
[1763329589951,3.2078,3068.7,3068.5,0.52828]
[1763329590651,3.2078,3068.7,3068.0,3.73617]
[1763329590948,3.21682053,3068.7,3068.3,0.52832]
[1763329591147,3.21682053,3068.7,3068.0,3.21268639]
[1763329591344,0.3761,3068.1,3068.0,3.21268639]
[1763329591550,0.5283,3068.5,3068.0,3.21268639]
[1763329591754,0.52834,3068.3,3068.0,3.21268639]
[1763329592657,0.5283,3068.5,3068.2,0.52834]
[1763329592949,0.52829,3068.6,3068.3,0.52833]
[1763329593456,3.21682053,3068.7,3068.4,0.5283]
[1763329593751,3.21682053,3068.7,3068.3,0.52831]
[1763329594054,0.3761,3068.1,3068.0,3.21268639]
[1763329595350,3.5839,3068.1,3067.4,3.2078]
[1763329595748,0.5284,3067.9,3067.6,0.52845]
[1763329595944,3.5839,3068.1,3067.4,3.73627]
[1763329596349,0.52838,3068.0,3067.6,0.52845]
[1763329596550,0.52842,3067.8,3067.4,3.73627]
[1763329596762,3.5839,3068.1,3067.5,0.52846]
[1763329596956,0.52841,3067.9,3067.6,0.52845]
[1763329598356,0.52842,3067.8,3067.6,0.52845]
[1763329598750,0.52842,3067.8,3066.3,0.30238022]
[1763329598751,0.3761,3067.2,3066.3,0.30238022]
[1763329598955,0.52868,3066.3,3065.4,0.407]
[1763329599263,3.2078,3066.4,3066.3,0.52867]
[1763329599461,0.52856,3067.0,3066.2,3.2078]
[1763329599649,0.00488639,3067.1,3066.6,0.407]
[1763329599958,0.00773138,3067.1,3067.0,3.2078]
[1763329603060,0.00773138,3067.1,3066.8,0.52858]
[1763329603261,0.53627138,3067.1,3066.8,0.52858]
[1763329603755,0.00773138,3067.1,3067.0,3.2078]
[1763329606858,3.138e-05,3067.1,3067.0,3.2078]
[1763329607662,3.2078,3068.3,3067.4,0.407]
[1763329607865,4.06482961,3068.7,3068.0,3.2078]
[1763329608165,0.00488639,3068.2,3068.1,0.93537]
[1763329608750,0.00488639,3068.2,3068.1,0.407]
[1763329608957,0.0080692,3068.2,3068.0,3.73618]
[1763329610158,0.5364192,3068.2,3068.0,3.2078]
[1763329610358,0.0080692,3068.2,3068.0,0.52838]
[1763329610567,0.0080692,3068.2,3068.0,3.73618]
[1763329610863,0.0080692,3068.2,3068.1,0.3941]
[1763329611060,0.889,3068.1,3068.0,3.2078]
[1763329611367,0.52845,3067.6,3067.5,3.21268639]
[1763329611773,0.5284,3067.9,3067.5,3.21268639]
[1763329611959,0.52842,3067.8,3067.5,3.74114639]
[1763329612166,0.0080692,3068.2,3067.7,0.52843]
[1763329612362,0.52842,3067.8,3067.7,0.52843]
[1763329614471,0.52844,3067.7,3067.5,3.74113639]
[1763329614765,0.5284,3067.9,3067.6,0.52845]
[1763329614974,0.52839,3068.0,3067.8,0.52842]
[1763329615360,0.0080692,3068.2,3068.0,0.52838]
[1763329615771,0.0080692,3068.2,3068.1,1.3327]
[1763329616069,0.0080692,3068.2,3068.1,0.9386]
[1763329616870,0.0080692,3068.2,3068.1,1.46697]
[1763329618960,4.59301961,3069.1,3068.4,0.3941]
[1763329619172,0.52821,3069.0,3068.8,0.52823]
[1763329619468,0.52821,3069.0,3068.9,0.52823]
[1763329619865,0.52821,3069.0,3068.9,0.53071625]
[1763329620069,0.53067045,3069.0,3068.9,0.53071625]
[1763329620371,0.53067045,3069.0,3068.9,0.00248625]
[1763329620568,1.41967045,3069.0,3068.9,0.00248625]
[1763329620776,0.52835,3068.2,3068.0,3.73618]
[1763329620972,0.52837,3068.1,3068.0,3.73618]
[1763329621165,3.2078,3068.7,3068.6,0.9386]
[1763329621367,0.00246045,3069.0,3068.9,0.9386]
[1763329621565,0.00246045,3069.0,3068.9,1.46683]
[1763329621774,0.00246045,3069.0,3068.9,1.46954848]
[1763329621976,0.86116801,3069.8,3069.7,1.46669]
[1763329622271,0.52802,3070.1,3069.9,0.52805]
[1763329622666,0.52801,3070.2,3070.0,0.52804]
[1763329623061,0.53070785,3070.2,3070.0,0.52804]
[1763329623462,0.00269785,3070.2,3069.8,0.00488639]
[1763329624072,0.00269785,3070.2,3069.9,0.52805]
[1763329624272,0.00269785,3070.2,3070.1,0.52802]
[1763329624673,0.00269785,3070.2,3070.1,3.73582]
[1763329624876,0.00269785,3070.2,3070.1,3.2078]
[1763329625370,0.52815,3069.4,3069.2,3.2078]
[1763329625570,0.52821,3069.0,3068.9,0.00271848]
[1763329626172,0.52821,3069.0,3068.8,3.2078]
[1763329626173,6.52821,3069.0,3068.8,3.17970276]
[1763329626479,0.52826,3068.7,3068.6,6.39e-06]
[1763329626667,0.52847,3067.5,3067.4,3.2078]
[1763329626866,0.52844,3067.7,3067.4,4.13038]
[1763329627170,3.21162979,3067.7,3067.4,0.00282017]
[1763329627376,0.52845,3067.6,3067.4,0.00282017]
[1763329627675,0.00382979,3067.7,3067.4,0.00282017]
[1763329627877,0.53226979,3067.7,3067.4,0.00282017]
[1763329628176,0.52846,3067.6,3067.4,0.00282017]
[1763329628572,3.21162979,3067.7,3067.4,3.60472017]
[1763329628573,0.00382979,3067.7,3067.4,3.60472017]
[1763329629078,0.00382979,3067.7,3067.6,0.52845]
[1763329629672,0.00382979,3067.7,3067.5,3.2078]
[1763329629867,0.00382979,3067.7,3067.5,3.73626]
[1763329630174,0.52834,3068.3,3067.5,3.2078]
[1763329630471,0.52834,3068.3,3068.0,0.52838]
[1763329630676,0.52831,3068.5,3068.1,0.92246]
[1763329630873,0.52831,3068.5,3068.2,0.52834]
[1763329631083,0.00351153,3068.5,3067.9,3.2078]
[1763329631271,0.52835,3068.3,3067.9,3.7362]
[1763329631872,0.00351153,3068.5,3067.9,3.7362]
[1763329632078,0.00351153,3068.5,3067.9,3.2078]
[1763329632578,3.2078,3068.1,3067.4,0.00282017]
[1763329632772,0.52846,3067.6,3067.4,0.00282017]
[1763329633280,0.52842,3067.8,3067.5,3.73626]
[1763329633482,3.2078,3068.0,3067.4,0.00282017]
[1763329633679,0.52843,3067.8,3067.4,0.00282017]
[1763329633883,3.2078,3068.4,3067.6,0.52844]
[1763329634183,0.52836,3068.2,3067.9,0.5284]
[1763329634478,3.2078,3068.4,3067.8,0.52841]
[1763329634679,3.2078,3068.4,3067.7,3.2078]
[1763329634879,0.52849,3067.4,3067.3,3.2078]
[1763329635476,0.52849,3067.4,3067.2,0.00488639]
[1763329635975,0.52849,3067.4,3067.2,0.00732055]
[1763329639387,0.52859,3066.8,3066.7,3.2078]
[1763329639582,0.52857,3067.0,3066.8,0.52859]
[1763329639782,0.52856,3067.0,3066.8,0.52859]
[1763329639981,0.52858,3066.9,3066.7,3.6776]
[1763329640387,0.52857,3066.9,3066.8,0.52859]
[1763329641280,0.52859,3066.9,3066.7,4.20867406]
[1763329641480,0.52859,3066.9,3066.8,0.52859]
[1763329641992,0.00488639,3067.1,3066.9,0.52857]
[1763329642187,0.00488639,3067.1,3067.0,0.52855]
[1763329642590,0.00488639,3067.1,3066.8,0.52858]
[1763329642788,0.00488639,3067.1,3066.9,0.52856]
[1763329643196,0.00488639,3067.1,3066.7,3.68008406]
[1763329643401,0.00488639,3067.1,3066.8,0.52859]
[1763329643698,0.00488639,3067.1,3066.7,3.68008406]
[1763329644490,0.00488639,3067.1,3066.9,0.52857]
[1763329645486,0.00488639,3067.1,3066.7,3.68008406]
[1763329645682,0.7789,3066.8,3066.7,0.00248406]
[1763329645884,0.00488639,3067.1,3067.0,0.7898]
[1763329646089,0.00488639,3067.1,3066.7,3.21028406]
[1763329646489,0.00488639,3067.1,3066.8,0.52858]
[1763329646687,0.00488639,3067.1,3067.0,1.31835]
[1763329647087,0.00488639,3067.1,3067.0,0.7898]
[1763329647395,0.00488639,3067.1,3066.7,3.21028406]
[1763329647396,0.00488639,3067.1,3066.7,3.73888406]
[1763329647592,0.00488639,3067.1,3067.0,1.31835]
[1763329647793,0.00488639,3067.1,3066.7,3.21028406]
[1763329647794,3.2078,3067.7,3067.2,0.52852]
[1763329648191,3.2078,3067.7,3066.7,3.21028406]
[1763329648394,3.2078,3067.7,3067.6,1.31825]
[1763329648605,3.2078,3068.2,3067.5,3.73625]
[1763329648786,3.21268639,3068.2,3067.9,0.5284]
[1763329649486,3.21268639,3068.2,3067.7,0.52842]
[1763329649694,3.21268639,3068.2,3067.8,0.52842]
[1763329650192,0.52842,3067.8,3067.7,0.52843]
[1763329650398,1.30735,3067.6,3067.5,3.2078]
[1763329650791,0.52845,3067.6,3067.5,3.2078]
[1763329650988,3.2078,3067.7,3067.2,0.52852]
[1763329651300,3.2078,3067.7,3067.0,3.73635]
[1763329651702,3.2078,3067.7,3067.1,0.52854]
[1763329651992,3.2078,3067.7,3067.0,3.73635]
[1763329652194,3.2078,3067.7,3067.0,3.2078]
[1763329653496,3.18201877,3068.1,3066.7,0.00248406]
[1763329653497,3.2078,3067.2,3066.7,0.00248406]
[1763329654197,3.9867,3066.8,3066.7,0.00248406]
[1763329655393,3.2078,3066.8,3066.7,0.00248406]
[1763329655594,3.2078,3067.2,3066.7,0.79228406]
[1763329655791,2.00758689,3067.5,3067.1,0.7898]
[1763329655993,3.2078,3067.6,3067.2,0.4698]
[1763329656192,4.07087502,3067.6,3067.2,0.4698]
[1763329656394,3.2078,3067.6,3067.2,0.4698]
[1763329656699,3.2078,3067.6,3066.9,3.2078]
[1763329656994,0.7789,3066.8,3066.7,0.00248406]
[1763329657197,4.07087502,3067.2,3066.7,0.00248406]
[1763329657402,3.2078,3066.8,3066.7,0.00248406]
[1763329657603,3.2078,3067.2,3066.7,0.00248406]
[1763329657999,0.52859,3066.9,3066.7,0.00248406]
[1763329658792,0.52856,3067.0,3066.8,0.7898]
[1763329659193,1.30749,3066.8,3066.7,0.00248406]
[1763329659499,4.51529,3066.8,3066.7,0.00248406]
[1763329661295,3.73639,3066.8,3066.7,0.00248406]
[1763329661703,0.52859,3066.8,3066.7,0.00248406]
[1763329662904,3.2078,3067.2,3066.7,0.79228406]
[1763329663104,0.52857,3067.0,3066.9,1.31837]
[1763329663293,3.2078,3067.2,3066.7,0.00248406]
[1763329663294,3.2078,3067.2,3067.1,1.31834]
[1763329664709,3.2078,3067.6,3067.2,0.4698]
[1763329664906,3.2078,3067.6,3067.2,0.99832]
[1763329665204,0.52848,3067.5,3067.3,0.5285]
[1763329665412,3.2078,3067.6,3067.5,0.7898]
[1763329665804,0.7789,3067.1,3067.0,0.87708369]
[1763329666007,3.2078,3067.5,3067.0,0.7898]
[1763329666309,3.2078,3067.9,3067.2,0.4698]
[1763329666511,3.2078,3067.9,3067.3,0.5285]
[1763329666896,3.2078,3067.9,3067.2,0.4698]
[1763329667106,3.2078,3067.9,3067.8,0.4698]
[1763329667514,3.2078,3067.9,3067.6,0.52845]
[1763329667809,3.2078,3067.9,3067.7,0.52843]
[1763329668117,0.00488639,3068.2,3067.8,1.2596]
[1763329668304,0.00488639,3068.2,3067.8,1.78801]
[1763329669107,0.00488639,3068.2,3068.1,0.52837]
[1763329669415,0.00488639,3068.2,3068.1,0.7463]
[1763329670312,0.00488639,3068.2,3067.9,3.2078]
[1763329670708,0.00488639,3068.2,3068.1,1.27467]
[1763329671211,0.00488639,3068.2,3068.1,0.7463]
[1763329672611,0.00488639,3068.2,3068.1,1.27467]
[1763329673307,3.2078,3069.2,3068.7,1.27456]
[1763329673614,3.2078,3069.2,3068.8,0.52824]
[1763329673815,3.2078,3069.2,3069.1,0.7463]
[1763329674012,3.2078,3069.7,3069.2,0.52816]
[1763329674211,3.73955199,3069.7,3069.6,0.4896]
[1763329675121,0.7572,3069.3,3069.2,0.00408013]
[1763329675304,0.00366199,3069.7,3069.6,1.76401]
[1763329675710,0.00366199,3069.7,3069.6,1.2359]
[1763329676212,0.00366199,3069.7,3069.6,1.76401]
[1763329678010,3.2078,3070.6,3070.2,0.52799]
[1763329678217,3.2078,3070.6,3070.2,0.4896]
[1763329678918,3.21021769,3070.6,3070.2,0.4896]
[1763329679218,0.7572,3070.3,3069.9,3.2078]
[1763329680516,0.7572,3070.0,3069.4,3.2078]
[1763329680712,3.2078,3070.2,3069.6,0.4896]
[1763329680914,0.00488639,3070.7,3070.6,0.7463]
[1763329681115,3.2078,3071.9,3070.6,3.2078]
[1763329681315,0.7572,3071.5,3069.8,1.16354373]
[1763329681612,1.9156025,3069.9,3069.0,0.4896]
[1763329681819,3.2078,3069.3,3069.0,0.4896]
[1763329682011,3.21155452,3069.3,3067.8,0.4896]
[1763329682211,3.2078,3068.5,3068.0,0.52838]
[1763329682415,3.2078,3068.5,3067.8,0.4896]
[1763329682613,0.00375452,3069.3,3069.2,0.7463]
[1763329683009,3.2078,3069.4,3069.3,1.27446]
[1763329683313,3.2078,3069.4,3069.3,0.7463]
[1763329684115,3.2115801,3069.4,3069.3,0.7463]
[1763329684617,0.52816,3069.3,3069.2,0.00414637]
[1763329685017,3.2115801,3069.4,3068.4,0.4896]
[1763329685220,3.2078,3068.5,3068.4,0.4896]
[1763329686111,3.2078,3068.5,3068.4,0.00289993]
[1763329686309,3.2078,3068.5,3068.4,0.49249993]
[1763329689618,3.2078,3068.5,3068.4,1.23879993]
[1763329690117,3.2078,3068.9,3068.8,0.7463]
[1763329690323,3.2078,3068.9,3068.4,1.02080993]
[1763329690710,3.2078,3068.9,3068.5,0.52829]
[1763329691625,3.2078,3068.9,3068.4,0.49249993]
[1763329691921,3.2078,3068.9,3068.6,0.52827]
[1763329692731,3.2078,3068.9,3068.8,0.7463]
[1763329692919,0.0037801,3069.4,3069.3,0.7463]
[1763329693223,0.0037801,3069.4,3069.3,3.9541]
[1763329693614,0.0037801,3069.4,3069.3,0.7463]
[1763329693823,0.0037801,3069.4,3069.3,3.9541]
[1763329694332,3.2078,3070.3,3070.2,1.2359]
[1763329694512,3.2078,3070.7,3070.2,4.4437]
[1763329694916,3.2078,3070.7,3070.6,0.7463]
[1763329695220,0.00251974,3070.7,3070.6,0.00423382]
[1763329695418,0.75971974,3070.7,3070.6,0.00423382]
[1763329695819,0.00251974,3070.7,3070.6,0.00423382]
[1763329696523,0.97351974,3070.7,3070.6,0.00423382]
[1763329696912,0.971,3069.9,3069.8,3.2078]
[1763329697115,0.971,3069.9,3069.4,3.2078]
[1763329697319,0.971,3069.5,3069.4,3.2078]
[1763329697921,0.971,3069.5,3069.4,3.21013535]
[1763329698521,3.4536,3070.2,3069.4,3.21013535]
[1763329698727,3.2078,3070.2,3069.5,0.5727]
[1763329699623,5.1234025,3070.2,3069.4,3.21013535]
[1763329700028,0.52811,3069.6,3069.4,3.21013535]
[1763329701228,1.1502379,3070.6,3069.5,0.5727]
[1763329701229,3.2078,3070.4,3069.5,0.5727]
[1763329701428,0.00251974,3070.7,3069.9,3.2078]
[1763329701627,0.00251974,3070.7,3070.1,0.52802]
[1763329702132,0.52799,3070.3,3070.1,0.52802]
[1763329702523,0.52797,3070.5,3070.1,0.52802]
[1763329702723,0.52797,3070.5,3069.9,3.2078]
[1763329702920,0.52798,3070.4,3070.0,0.52804]
[1763329703127,0.52799,3070.3,3070.0,0.52804]
[1763329703523,3.2078,3070.4,3069.6,0.5281]
[1763329703725,3.2078,3070.4,3069.9,3.2078]
[1763329703931,0.52804,3070.0,3069.9,3.2078]
[1763329704532,0.52808,3069.8,3069.5,0.5727]
[1763329705133,3.2078,3070.4,3069.7,1.44909]
[1763329705335,3.2078,3070.4,3069.8,0.52807]
[1763329705534,0.52802,3070.1,3069.8,0.52807]
[1763329705734,3.2078,3070.4,3069.8,0.52807]
[1763329705935,3.2078,3070.4,3069.7,0.52809]
[1763329706543,3.2078,3070.4,3069.6,1.4937]
[1763329706841,3.2078,3070.4,3069.7,3.2078]
[1763329707035,0.52806,3069.9,3069.8,0.921]
[1763329707529,0.00251974,3070.7,3070.0,0.52803]
[1763329707734,0.00251974,3070.7,3070.1,3.2078]
[1763329708137,0.528,3070.2,3070.1,3.2078]
[1763329711338,0.52804,3070.0,3069.8,0.52807]
[1763329711540,0.52806,3069.9,3069.8,1.44907]
[1763329711745,0.52804,3070.0,3069.8,1.44907]
[1763329711936,3.2078,3070.4,3069.7,3.2078]
[1763329712243,0.528,3070.3,3070.2,1.4937]
[1763329712942,0.52793,3070.6,3070.3,1.44898]
[1763329713131,0.00251974,3070.7,3070.2,0.5727]
[1763329713132,0.53043974,3070.7,3070.6,0.921]
[1763329713737,0.00251974,3070.7,3070.6,1.44893]
[1763329713937,0.53043974,3070.7,3070.6,1.44893]
[1763329714146,0.00251974,3070.7,3070.6,1.44893]
[1763329714449,3.2078,3071.6,3071.2,0.52783]
[1763329715138,3.2078,3071.6,3071.5,0.921]
[1763329715646,3.21084416,3071.6,3071.5,0.921]
[1763329716052,1.72535685,3072.5,3071.5,0.921]
[1763329716053,3.2078,3072.6,3072.1,0.921]
[1763329716345,0.9189,3072.0,3071.5,3.2078]
[1763329716545,5.4225025,3072.6,3071.9,1.44871]
[1763329716744,3.2078,3072.1,3071.4,0.5727]
[1763329717149,3.2111743,3072.1,3071.4,0.57628768]
[1763329717345,0.0033743,3072.1,3071.8,3.73552]
[1763329717649,3.2111743,3072.1,3071.7,0.52774]
[1763329717850,0.9189,3071.5,3071.4,0.00358768]
[1763329719046,3.2078,3071.6,3071.4,0.00358768]
[1763329719248,3.2078,3072.0,3071.4,3.78408768]
[1763329719643,3.2078,3072.0,3071.4,4.31187768]
[1763329719844,3.2078,3072.0,3071.6,0.52776]
[1763329720046,3.2078,3072.0,3071.4,4.31187768]
[1763329720946,3.2078,3072.0,3071.4,3.78408768]
[1763329721542,0.9189,3071.5,3071.4,3.21138768]
[1763329722346,3.6318,3072.0,3071.4,3.21138768]
[1763329722736,3.2078,3072.0,3071.4,3.78408768]
[1763329724948,3.2078,3072.0,3071.6,0.52776]
[1763329725150,15.39106187,3072.7,3071.4,3.78408768]
[1763329725151,3.2078,3072.8,3072.7,0.52757]
[1763329725354,3.2078,3073.2,3072.8,0.52755]
[1763329725540,3.2078,3073.2,3072.7,0.921]
[1763329725743,3.2078,3073.3,3073.1,0.921]
[1763329726051,3.2078,3073.3,3073.2,1.4937]
[1763329726239,3.2078,3073.3,3072.6,3.7805]
[1763329726240,3.21097096,3073.3,3072.6,3.7805]
[1763329727049,3.21097096,3073.3,3072.7,0.52757]
[1763329727756,3.21097096,3073.3,3072.8,0.52755]
[1763329728758,3.21097096,3073.3,3072.6,3.7805]
[1763329729052,3.21097096,3073.3,3072.6,0.5727]
[1763329729252,3.21097096,3073.3,3072.6,4.30809]
[1763329729949,0.52756,3072.8,3072.7,0.865]
[1763329730149,0.52754,3073.0,3072.7,1.39257]
[1763329730352,3.21097096,3073.3,3072.6,3.7805]
[1763329730651,3.21097096,3073.3,3072.6,0.5727]
[1763329730856,0.8383,3072.5,3072.4,0.00488639]
[1763329731153,0.2991,3073.2,3072.4,0.00488639]
[1763329731547,3.2078,3072.9,3072.4,0.00488639]
[1763329732257,3.21097096,3073.3,3072.6,0.5538]
[1763329732464,3.2078,3072.9,3072.8,1.39256]
[1763329732756,3.2078,3072.9,3072.6,0.5538]
[1763329732757,0.00317096,3073.3,3073.2,1.94629]
[1763329733743,0.00317096,3073.3,3073.2,1.4188]
[1763329733943,3.2078,3074.2,3073.6,0.865]
[1763329734149,3.2078,3074.2,3073.8,0.5538]
[1763329734952,3.21038955,3074.2,3073.8,0.55681091]
[1763329735154,3.21038955,3074.2,3073.8,1.08419091]
[1763329735560,3.21038955,3074.2,3073.8,0.55681091]
[1763329736759,0.8383,3073.9,3073.8,0.00301091]
[1763329737052,3.21038955,3074.2,3073.8,0.00301091]
[1763329737254,0.8383,3073.9,3073.8,0.00301091]
[1763329737661,3.21038955,3074.2,3073.8,0.00301091]
[1763329737662,3.21038955,3074.2,3074.1,0.865]
[1763329738460,0.00258955,3074.2,3074.1,0.865]
[1763329738856,0.52736,3074.0,3073.8,0.55681091]
[1763329739057,0.52736,3074.0,3073.9,0.865]
[1763329739656,0.52736,3074.0,3073.9,1.39237]
[1763329740455,0.52737,3073.9,3073.8,0.00301091]
[1763329740660,1.36567,3073.9,3073.8,0.00301091]
[1763329741064,0.52751,3073.1,3073.0,0.865]
[1763329741360,0.8383,3073.1,3072.6,1.08139]
[1763329741660,0.8383,3072.5,3072.0,3.7805]
[1763329741958,0.8383,3072.5,3072.0,0.00264581]
[1763329742366,0.8383,3072.1,3072.0,0.00264581]
[1763329742759,1.2655,3072.0,3071.0,0.52786]
[1763329743063,3.2078,3071.7,3071.0,0.52786]
[1763329743955,3.21072293,3071.7,3071.0,0.00777564]
[1763329744156,4.0461,3071.1,3071.0,0.00777564]
[1763329744868,0.8383,3070.5,3070.4,3.2078]
[1763329745266,0.03495278,3070.5,3070.4,3.2078]
[1763329745661,0.03495278,3070.5,3070.0,3.2078]
[1763329745863,0.05080774,3070.3,3070.0,3.2107984]
[1763329746565,0.05080774,3070.3,3070.2,1.4188]
[1763329747461,0.05080774,3070.3,3070.0,3.2107984]
[1763329747868,0.8383,3070.1,3070.0,0.0029984]
[1763329749067,0.88910774,3070.1,3070.0,0.0029984]
[1763329751568,0.06569792,3070.1,3069.4,3.2078]
[1763329751770,0.8383,3069.5,3069.4,3.2078]
[1763329752171,0.0805881,3069.5,3069.4,3.2078]
[1763329752569,0.09547828,3069.5,3069.4,3.2078]
[1763329752771,0.08793171,3069.5,3069.4,4.60409741]
[1763329755777,3.2078,3070.2,3070.0,0.52802]
[1763329756179,0.52805,3070.0,3069.6,0.4593]
[1763329756770,0.52805,3070.0,3069.8,0.7897]
[1763329756771,0.00419195,3070.0,3069.8,0.7897]
[1763329756972,0.53223195,3070.0,3069.9,0.52805]
[1763329757369,0.00419195,3070.0,3069.9,0.52805]
[1763329757570,0.00419195,3070.0,3069.9,4.52555]
[1763329757771,3.74061639,3070.6,3070.5,1.31765]
[1763329757972,0.00488639,3070.6,3070.5,4.52545]
[1763329758879,0.0075726,3070.6,3070.5,4.52545]
[1763329760478,0.5355126,3070.6,3070.5,0.7347]
[1763329760680,0.0075726,3070.6,3070.5,0.7347]
[1763329761382,0.0075726,3070.6,3070.5,4.47045]
[1763329762272,0.52785,3071.1,3070.9,0.52787]
[1763329762479,0.52783,3071.3,3070.8,0.4739]
[1763329762678,0.52783,3071.2,3071.1,0.52785]
[1763329762873,3.2078,3071.4,3071.0,0.7347]
[1763329762874,0.52785,3071.1,3071.0,0.7347]
[1763329763174,0.7401,3070.9,3070.5,3.2078]
[1763329763377,0.7401,3070.6,3070.5,3.2078]
[1763329764980,0.7401,3070.6,3070.5,3.73575]
[1763329765185,0.00242634,3070.9,3070.8,0.5279]
[1763329765377,0.00242634,3070.9,3070.6,0.52793]
[1763329765686,0.00242634,3070.9,3070.8,1.7365]
[1763329770382,3.2078,3071.8,3071.4,0.52778]
[1763329770585,0.52773,3071.8,3071.7,0.7347]
[1763329771592,0.53101534,3071.8,3071.7,0.73884478]
[1763329771782,0.53101534,3071.8,3071.7,0.00414478]
[1763329773188,1.27111534,3071.8,3071.7,0.00414478]
[1763329773784,3.95118534,3071.8,3070.9,3.2078]
[1763329773980,3.95118534,3071.8,3071.2,0.52783]
[1763329774185,0.7401,3071.0,3070.9,3.2078]
[1763329774380,0.7401,3071.0,3070.9,3.73568]
[1763329774781,0.7401,3071.0,3070.9,3.21178798]
[1763329775791,4.07163186,3071.8,3071.0,0.4739]
[1763329775986,3.21108534,3071.8,3071.5,0.4739]
[1763329776392,3.21108534,3071.8,3071.5,1.00168]
[1763329777386,3.21108534,3071.8,3071.6,0.52775]
[1763329777587,3.21108534,3071.8,3071.5,1.00168]
[1763329777787,3.21108534,3071.8,3071.6,0.52776]
[1763329778296,3.21108534,3071.8,3071.5,0.4739]
[1763329778597,3.21108534,3071.8,3071.6,0.52776]
[1763329780100,3.21108534,3071.8,3071.5,0.4739]
[1763329780591,3.21108534,3071.8,3071.7,0.7347]
[1763329780899,3.21108534,3071.8,3071.7,1.26245]
[1763329781399,0.52776,3071.6,3071.5,1.00167]
[1763329782401,0.52776,3071.6,3071.5,0.4739]
[1763329782600,0.52775,3071.7,3071.6,0.52775]
[1763329782801,0.00328534,3071.8,3071.7,1.26245]
[1763329783001,1.26795,3071.1,3071.0,3.6817]
[1763329783201,0.87694243,3071.1,3071.0,3.6817]
[1763329783398,0.7068,3071.0,3070.9,0.00398798]
[1763329783700,4.14,3071.0,3070.9,0.00398798]
[1763329784204,0.7068,3070.5,3070.4,0.00488639]
[1763329784809,4.29374652,3071.0,3070.4,0.53285639]
[1763329785400,4.29374652,3071.0,3070.4,0.53606819]
[1763329785703,1.56734652,3071.0,3070.8,0.52789]
[1763329785905,0.7068,3071.1,3071.0,0.4739]
[1763329786208,0.7068,3070.9,3070.8,0.52789]
[1763329786506,0.7068,3070.5,3070.4,0.00809819]
[1763329786696,4.06834652,3071.0,3070.4,0.00809819]
[1763329787007,0.7068,3070.8,3070.6,0.52793]
[1763329788310,0.7068,3070.8,3070.7,0.52792]
[1763329788509,0.86054652,3071.1,3070.6,3.2078]
[1763329789108,0.86054652,3071.1,3070.7,0.5279]
[1763329789409,0.86054652,3071.1,3070.7,0.52792]
[1763329789711,0.86054652,3071.1,3070.6,3.73573]
[1763329790504,0.4923,3070.6,3070.5,0.4739]
[1763329790709,0.4923,3070.5,3070.4,3.21589819]
[1763329790909,1.02025,3070.5,3070.4,3.74386819]
[1763329791412,1.02025,3070.5,3070.4,3.21589819]
[1763329791703,0.4923,3070.5,3070.4,3.74386819]
[1763329792005,1.02025,3070.5,3070.4,0.00809819]
[1763329792405,6.86054652,3070.5,3069.6,3.2078]
[1763329792610,1.01229,3069.7,3069.6,3.2078]
[1763329793708,4.08309858,3070.0,3069.6,3.91815375]
[1763329793902,3.21268639,3070.0,3069.9,1.23536]
[1763329794609,0.00488639,3070.0,3069.9,1.23536]
[1763329796902,0.00488639,3070.0,3069.6,3.21085375]
[1763329796903,0.4891,3070.6,3070.5,0.4823]
[1763329797107,1.01703,3070.6,3070.5,0.4823]
[1763329797706,0.52799,3070.3,3070.2,0.528]
[1763329798108,0.00488639,3070.6,3070.0,3.6901]
[1763329798307,0.00488639,3070.6,3070.0,2.21808925]
[1763329798513,0.52797,3070.5,3070.4,0.52797]
[1763329799317,0.00488639,3070.6,3070.5,1.71755]
[1763329801911,0.00488639,3070.6,3070.5,1.1896]
[1763329802217,0.00488639,3070.6,3070.5,1.71755]
[1763329802519,0.74668639,3070.6,3070.5,1.01025]
[1763329802723,1.27461639,3070.6,3070.5,1.01025]
[1763329802913,1.27461639,3070.6,3070.5,0.4823]
[1763329803914,0.52795,3070.5,3070.0,3.6901]
[1763329804112,0.00488639,3070.6,3070.5,0.52795]
[1763329804417,0.52779,3071.5,3071.3,0.7073]
[1763329804614,0.52779,3071.5,3071.2,0.52782]
[1763329804615,3.2078,3071.6,3071.5,1.71738]
[1763329804808,3.2078,3072.0,3071.7,0.7073]
[1763329805511,3.2078,3072.0,3071.7,1.23505]
[1763329805911,0.52776,3071.6,3071.5,0.4823]
[1763329806118,3.2078,3072.0,3071.5,1.1896]
[1763329806416,0.52771,3071.9,3071.7,1.23505]
[1763329807112,3.2078,3072.0,3071.5,0.4823]
[1763329807317,0.7418,3071.5,3071.4,0.00488639]
[1763329807706,3.2078,3072.0,3071.4,0.00488639]
[1763329807914,3.2078,3072.0,3071.7,1.23505]
[1763329808517,3.73549,3072.0,3071.7,1.23505]
[1763329808713,3.2078,3072.0,3071.7,1.23505]
[1763329808918,0.52771,3071.9,3071.7,1.23505]
[1763329809419,3.73551,3072.0,3071.7,1.23505]
[1763329809613,0.53101534,3071.8,3071.7,0.7073]
[1763329810117,0.00328534,3071.8,3071.7,1.23505]
[1763329810313,0.53101534,3071.8,3071.7,0.7073]
[1763329811818,0.53101534,3071.8,3071.7,1.23505]
[1763329812916,0.53101534,3071.8,3071.7,0.7073]
[1763329813617,0.53101534,3071.8,3071.7,1.23505]
[1763329814918,0.00328534,3071.8,3071.7,1.23505]
[1763329815725,0.00328534,3071.8,3071.7,4.44285]
[1763329816528,0.53101534,3071.8,3071.7,4.44285]
[1763329816726,0.00328534,3071.8,3071.7,4.44285]
[1763329817726,0.53101534,3071.8,3071.7,4.44285]
[1763329817920,0.53101534,3071.8,3071.7,3.2078]
[1763329817921,1.23531534,3071.8,3071.7,3.2078]
[1763329818125,0.5279,3070.8,3070.7,3.8718]